fUSD/lending_fUSD_20240921
["ID","MTS","AMOUNT","RATE_DAILY","PERIOD"]
[338831799,1726931440421,-500.0,0.0001452,2]
[338831801,1726931440431,-500.0,0.0001452,2]
[338831803,1726931440440,-500.0,0.0001452,2]
[338831805,1726931440449,-500.0,0.0001452,2]
[338831807,1726931440459,-500.0,0.0001452,2]
[338831809,1726931440468,-500.0,0.0001452,2]
[338831811,1726931440477,-500.0,0.0001452,2]
[338831813,1726931440487,-500.0,0.0001452,2]
[338831814,1726931440496,-500.0,0.0001452,2]
[338831817,1726931440506,-500.0,0.0001452,2]
[338831818,1726931440515,-500.0,0.0001452,2]
[338831820,1726931440525,-500.0,0.0001452,2]
[338831823,1726931440536,-500.0,0.0001452,2]
[338831825,1726931440546,-500.0,0.0001452,2]
[338831827,1726931440555,-500.0,0.0001452,2]
[338831829,1726931440564,-500.0,0.0001452,2]
[338831831,1726931440575,-500.0,0.0001452,2]
[338831833,1726931440585,-500.0,0.0001452,2]
[338831835,1726931440594,-179.55385063,0.0001452,2]
[338831837,1726931440604,-500.0,0.0001452,2]
[338831839,1726931440614,-501.01817251,0.0001452,2]
[338831841,1726931440623,-500.0,0.0001452,2]
[338831843,1726931440633,-500.0,0.0001452,2]
[338831845,1726931440642,-500.0,0.0001452,2]
[338831847,1726931440652,-500.0,0.0001452,2]
[338831849,1726931440662,-500.0,0.0001452,2]
[338831851,1726931440673,-500.0,0.0001452,2]
[338831853,1726931440683,-500.0,0.0001452,2]
[338831856,1726931440693,-500.0,0.0001452,2]
[338831858,1726931440703,-500.0,0.0001452,2]
[338831860,1726931440712,-500.0,0.0001452,2]
[338831861,1726931440722,-375.96,0.0001452,2]
[338831863,1726931440735,-568.03,0.0001452,2]
[338831865,1726931440745,-500.0,0.0001452,2]
[338831867,1726931440754,-500.0,0.0001452,2]
[338831869,1726931440763,-500.0,0.0001452,2]
[338831871,1726931440772,-509.07755513,0.0001452,2]
[338831873,1726931440780,-500.0,0.0001452,2]
[338831875,1726931440790,-500.0,0.0001452,2]
[338831877,1726931440799,-500.0,0.0001452,2]
[338831879,1726931440808,-500.0,0.0001452,2]
[338831881,1726931440818,-500.0,0.0001452,2]
[338831883,1726931440827,-519.67,0.0001452,2]
[338831885,1726931440837,-500.0,0.0001452,2]
[338831887,1726931440846,-501.31174587,0.0001452,2]
[338831889,1726931440855,-500.0,0.0001452,2]
[338831891,1726931440864,-500.0,0.0001452,2]
[338831893,1726931440873,-500.0,0.0001452,2]
[338831895,1726931440882,-500.0,0.0001452,2]
[338831897,1726931440892,-496.47979193,0.0001452,2]
[338831899,1726931440901,-500.0,0.0001452,2]
[338831901,1726931440910,-500.0,0.0001452,2]
[338831902,1726931440919,-500.0,0.0001452,2]
[338831904,1726931440929,-500.0,0.0001452,2]
[338831906,1726931440938,-16179.3827,0.00014555,2]
[338831908,1726931440947,-500.0,0.00014573,2]
[338831910,1726931440956,-500.0,0.00014573,2]
[338831912,1726931440965,-253.13405707,0.00014587,2]
[338831914,1726931440975,-779.78214325,0.00014587,2]
[338831916,1726931440985,-20453.7467803,0.00014588,3]
[338831918,1726931440995,-500.0,0.00014597,2]
[338831920,1726931441006,-500.0,0.00014597,2]
[338831922,1726931441015,-500.0,0.00014597,2]
[338831924,1726931441025,-500.0,0.00014597,2]
[338831926,1726931441034,-500.0,0.00014597,2]
[338831928,1726931441044,-373.12928111,0.00014597,2]
[338831930,1726931441053,-498.0,0.00014597,2]
[338831932,1726931441063,-181.19042995,0.00014597,2]
[338831934,1726931441073,-643.47,0.00014597,2]
[338831936,1726931441083,-500.0,0.00014597,2]
[338831938,1726931441093,-500.0,0.00014597,2]
[338831940,1726931441102,-500.0,0.00014597,2]
[338831942,1726931441112,-500.0,0.00014597,2]
[338831944,1726931441121,-500.0,0.00014597,2]
[338831946,1726931441130,-500.0,0.00014597,2]
[338831948,1726931441139,-500.0,0.00014597,2]
[338831950,1726931441148,-500.0,0.00014597,2]
[338831952,1726931441159,-500.0,0.00014597,2]
[338831954,1726931441168,-794.89,0.00014597,2]
[338831956,1726931441177,-522.88,0.00014597,2]
[338831958,1726931441187,-500.0,0.00014597,2]
[338831960,1726931441196,-500.0,0.00014597,2]
[338831962,1726931441205,-500.0,0.00014597,2]
[338831964,1726931441215,-500.0,0.00014597,2]
[338831966,1726931441226,-500.0,0.00014597,2]
[338831968,1726931441235,-500.0,0.00014597,2]
[338831970,1726931441245,-500.0,0.00014597,2]
[338831972,1726931441255,-606.56,0.00014597,2]
[338831974,1726931441265,-500.0,0.00014597,2]
[338831976,1726931441274,-500.0,0.00014597,2]
[338831978,1726931441284,-362.87,0.00014597,2]
[338831980,1726931441293,-156.28,0.00014597,2]
[338831982,1726931441302,-197.54,0.00014597,2]
[338831984,1726931441311,-500.0,0.00014597,2]
[338831986,1726931441320,-500.0,0.00014597,2]
[338831987,1726931441329,-500.0,0.00014597,2]
[338831988,1726931441338,-500.0,0.00014597,2]
[338831989,1726931441346,-500.0,0.00014597,2]
[338831990,1726931441355,-500.0,0.00014597,2]
[338831991,1726931441364,-500.0,0.00014597,2]
[338831992,1726931441373,-258.3,0.00014597,2]
[338831993,1726931441382,-500.0,0.00014597,2]
[338831994,1726931441391,-500.0,0.00014597,2]
[338831995,1726931441400,-500.0,0.00014597,2]
[338831996,1726931441409,-500.0,0.00014597,2]
[338831997,1726931441418,-500.0,0.00014597,2]
[338831998,1726931441427,-500.0,0.00014597,2]
[338831999,1726931441436,-500.0,0.00014597,2]
[338832000,1726931441446,-500.0,0.00014597,2]
[338832001,1726931441455,-500.0,0.00014597,2]
[338832002,1726931441464,-500.0,0.00014597,2]
[338832003,1726931441473,-500.0,0.00014597,2]
[338832004,1726931441482,-500.0,0.00014597,2]
[338832005,1726931441491,-500.0,0.00014597,2]
[338832006,1726931441502,-500.0,0.00014597,2]
[338832007,1726931441512,-500.0,0.00014597,2]
[338832008,1726931441522,-500.0,0.00014597,2]
[338832009,1726931441531,-500.0,0.00014597,2]
[338832010,1726931441542,-500.0,0.00014597,2]
[338832011,1726931441551,-500.0,0.00014597,2]
[338832012,1726931441561,-500.0,0.00014597,2]
[338832013,1726931441570,-311.42,0.00014597,2]
[338832014,1726931441579,-209.87,0.00014597,2]
[338832015,1726931441588,-500.0,0.00014597,2]
[338832016,1726931441598,-500.0,0.00014597,2]
[338832017,1726931441607,-500.0,0.00014597,2]
[338832018,1726931441617,-500.0,0.00014597,2]
[338832019,1726931441627,-500.0,0.00014597,2]
[338832020,1726931441636,-500.0,0.00014597,2]
[338832021,1726931441646,-152.37324104,0.00014597,2]
[338832022,1726931441655,-277.85482831,0.00014597,2]
[338832023,1726931441664,-500.0,0.00014597,2]
[338832024,1726931441673,-180.99408916,0.00014597,2]
[338832025,1726931441682,-500.0,0.00014597,2]
[338832026,1726931441692,-500.0,0.00014597,2]
[338832027,1726931441702,-288.09055027,0.00014597,2]
[338832028,1726931441712,-456.0,0.00014597,2]
[338832029,1726931441723,-500.0,0.00014597,2]
[338832030,1726931441732,-500.0,0.00014597,2]
[338832031,1726931441742,-500.0,0.00014597,2]
[338832032,1726931441751,-500.0,0.00014597,2]
[338832033,1726931441760,-500.0,0.00014597,2]
[338832034,1726931441769,-415.94,0.00014597,2]
[338832035,1726931441778,-500.0,0.00014597,2]
[338832036,1726931441788,-500.0,0.00014597,2]
[338832037,1726931441797,-172.81,0.00014597,2]
[338832038,1726931441807,-647.63,0.00014597,2]
[338832039,1726931441816,-500.0,0.00014597,2]
[338832040,1726931441826,-500.0,0.00014597,2]
[338832041,1726931441838,-218.94,0.00014597,2]
[338832042,1726931442008,-408.66,0.00014597,2]
[338832043,1726931442019,-500.0,0.00014597,2]
[338832044,1726931442029,-500.0,0.00014597,2]
[338832045,1726931442040,-500.0,0.00014597,2]
[338832046,1726931442050,-377.33083912,0.00014597,2]
[338832048,1726931442059,-500.0,0.00014597,2]
[338832050,1726931442069,-500.0,0.00014597,2]
[338832052,1726931442079,-500.0,0.00014597,2]
[338832054,1726931442088,-500.0,0.00014597,2]
[338832056,1726931442098,-500.0,0.00014597,2]
[338832058,1726931442107,-500.0,0.00014597,2]
[338832060,1726931442117,-500.0,0.00014597,2]
[338832062,1726931442126,-500.0,0.00014597,2]
[338832064,1726931442136,-500.0,0.00014597,2]
[338832066,1726931442145,-500.0,0.00014597,2]
[338832068,1726931442155,-500.0,0.00014597,2]
[338832070,1726931442164,-500.0,0.00014597,2]
[338832072,1726931442173,-500.0,0.00014597,2]
[338832074,1726931442183,-500.0,0.00014597,2]
[338832075,1726931442192,-500.0,0.00014597,2]
[338832077,1726931442201,-500.0,0.00014597,2]
[338832079,1726931442211,-500.0,0.00014597,2]
[338832082,1726931442222,-500.0,0.00014597,2]
[338832084,1726931442232,-481.09,0.00014597,2]
[338832086,1726931442242,-500.0,0.00014597,2]
[338832088,1726931442251,-500.0,0.00014597,2]
[338832090,1726931442261,-500.0,0.00014597,2]
[338832091,1726931442270,-500.0,0.00014597,2]
[338832092,1726931442280,-500.0,0.00014597,2]
[338832093,1726931442289,-500.0,0.00014597,2]
[338832094,1726931442299,-500.0,0.00014597,2]
[338832095,1726931442308,-536.42,0.00014597,2]
[338832096,1726931442317,-500.0,0.00014597,2]
[338832097,1726931442327,-500.0,0.00014597,2]
[338832098,1726931442336,-500.0,0.00014597,2]
[338832099,1726931442346,-500.0,0.00014597,2]
[338832101,1726931442357,-328.0108894,0.00014597,2]
[338832103,1726931442367,-500.0,0.00014597,2]
[338832105,1726931442377,-287.63,0.00014597,2]
[338832107,1726931442388,-500.0,0.00014597,2]
[338832109,1726931442399,-500.0,0.00014597,2]
[338832111,1726931442409,-500.0,0.00014597,2]
[338832113,1726931442420,-500.0,0.00014597,2]
[338832115,1726931442432,-500.0,0.00014597,2]
[338832117,1726931442442,-500.0,0.00014597,2]
[338832119,1726931442453,-186.07385317,0.00014597,2]
[338832121,1726931442463,-49893.4408,0.00014598,2]
[338832123,1726931442473,-10986.7987,0.00014598,2]
[338832125,1726931442484,-4252.0117,0.00014598,2]
[338832127,1726931442495,-658.0173,0.00014598,2]
[338832130,1726931442506,-1987.92176373,0.00014611,2]
[338832132,1726931442516,-224.618293,0.00014617,2]
[338832134,1726931442526,-167.13,0.00014618,2]
[338832136,1726931442535,-168.64780151,0.00014625,2]
[338832138,1726931442545,-388.92563463,0.00014673,2]
[338832140,1726931442554,-500.0,0.00014673,2]
[338832142,1726931442563,-6817.91559342,0.00014677,3]
[338832144,1726931442572,-40907.4935605,0.00014677,3]
[338832145,1726931442581,-500.0,0.00014686,2]
[338832147,1726931442590,-197.74,0.00014686,2]
[338832149,1726931442599,-364.85,0.00014686,2]
[338832152,1726931442609,-500.0,0.00014686,2]
[338832154,1726931442618,-20453.7467803,0.00014687,3]
[338832156,1726931442628,-122722.480682,0.00014688,3]
[338832158,1726931442638,-779.78214324,0.00014694,2]
[338832160,1726931442648,-500.0,0.00014696,2]
[338832162,1726931442658,-500.0,0.00014696,2]
[338832164,1726931442668,-298.16768616,0.00014696,2]
[338832166,1726931442678,-500.0,0.00014697,2]
[338832168,1726931442688,-202.90229282,0.00014697,2]
[338832170,1726931442699,-500.0,0.00014697,2]
[338832172,1726931442708,-500.0,0.00014697,2]
[338832174,1726931442719,-500.0,0.00014697,2]
[338832176,1726931442728,-500.0,0.00014697,2]
[338832178,1726931442737,-500.0,0.00014697,2]
[338832181,1726931442748,-500.0,0.00014697,2]
[338832183,1726931442758,-500.0,0.00014697,2]
[338832185,1726931442767,-500.0,0.00014697,2]
[338832187,1726931442776,-500.0,0.00014697,2]
[338832189,1726931442785,-500.0,0.00014697,2]
[338832191,1726931442794,-617.39,0.00014697,2]
[338832193,1726931442803,-592.88,0.00014697,2]
[338832195,1726931442813,-794.89,0.00014697,2]
[338832197,1726931442823,-500.0,0.00014697,2]
[338832198,1726931442832,-500.0,0.00014697,2]
[338832200,1726931442841,-500.0,0.00014697,2]
[338832202,1726931442850,-500.0,0.00014697,2]
[338832204,1726931442859,-500.0,0.00014697,2]
[338832206,1726931442868,-500.0,0.00014697,2]
[338832208,1726931442877,-500.0,0.00014697,2]
[338832210,1726931442887,-606.56,0.00014697,2]
[338832212,1726931442897,-216.45,0.00014697,2]
[338832214,1726931442906,-204.300001,0.00014697,2]
[338832216,1726931442915,-500.0,0.00014697,2]
[338832218,1726931442924,-500.0,0.00014697,2]
[338832220,1726931442934,-500.0,0.00014697,2]
[338832222,1726931442944,-500.0,0.00014697,2]
[338832224,1726931442953,-500.0,0.00014697,2]
[338832226,1726931442963,-600.67,0.00014697,2]
[338832228,1726931442973,-500.0,0.00014697,2]
[338832230,1726931442983,-500.0,0.00014697,2]
[338832232,1726931442992,-500.0,0.00014697,2]
[338832235,1726931443005,-500.0,0.00014697,2]
[338832238,1726931443014,-500.0,0.00014697,2]
[338832240,1726931443023,-500.0,0.00014697,2]
[338832242,1726931443032,-500.0,0.00014697,2]
[338832244,1726931443043,-500.0,0.00014697,2]
[338832246,1726931443052,-500.0,0.00014697,2]
[338832248,1726931443061,-500.0,0.00014697,2]
[338832250,1726931443071,-500.0,0.00014697,2]
[338832252,1726931443080,-500.0,0.00014697,2]
[338832254,1726931443089,-500.0,0.00014697,2]
[338832256,1726931443099,-500.0,0.00014697,2]
[338832258,1726931443108,-500.0,0.00014697,2]
[338832260,1726931443117,-500.0,0.00014697,2]
[338832262,1726931443126,-500.0,0.00014697,2]
[338832263,1726931443135,-500.0,0.00014697,2]
[338832266,1726931443144,-265.99,0.00014697,2]
[338832269,1726931443154,-500.0,0.00014697,2]
[338832271,1726931443163,-500.0,0.00014697,2]
[338832274,1726931443172,-500.0,0.00014697,2]
[338832277,1726931443182,-500.0,0.00014697,2]
[338832280,1726931443191,-500.0,0.00014697,2]
[338832283,1726931443201,-500.0,0.00014697,2]
[338832286,1726931443210,-205.12,0.00014697,2]
[338832289,1726931443220,-500.0,0.00014697,2]
[338832292,1726931443229,-500.0,0.00014697,2]
[338832295,1726931443239,-500.0,0.00014697,2]
[338832297,1726931443249,-500.0,0.00014697,2]
[338832299,1726931443259,-500.0,0.00014697,2]
[338832301,1726931443268,-500.0,0.00014697,2]
[338832303,1726931443277,-330.16,0.00014697,2]
[338832305,1726931443286,-500.0,0.00014697,2]
[338832307,1726931443296,-500.0,0.00014697,2]
[338832309,1726931443305,-500.0,0.00014697,2]
[338832311,1726931443315,-500.0,0.00014697,2]
[338832313,1726931443324,-160.08,0.00014697,2]
[338832315,1726931443333,-384.14,0.00014697,2]
[338832317,1726931443343,-500.0,0.00014697,2]
[338832319,1726931443352,-500.0,0.00014697,2]
[338832321,1726931443361,-161.99,0.00014697,2]
[338832322,1726931443370,-500.0,0.00014697,2]
[338832324,1726931443379,-500.0,0.00014697,2]
[338832326,1726931443388,-500.0,0.00014697,2]
[338832328,1726931443397,-500.0,0.00014697,2]
[338832329,1726931443406,-500.0,0.00014697,2]
[338832331,1726931443415,-500.0,0.00014697,2]
[338832333,1726931443425,-500.0,0.00014697,2]
[338832335,1726931443434,-500.0,0.00014697,2]
[338832337,1726931443443,-500.0,0.00014697,2]
[338832338,1726931443453,-500.0,0.00014697,2]
[338832340,1726931443462,-500.0,0.00014697,2]
[338832342,1726931443471,-500.0,0.00014697,2]
[338832344,1726931443481,-500.0,0.00014697,2]
[338832346,1726931443490,-177.78,0.00014697,2]
[338832348,1726931443499,-500.0,0.00014697,2]
[338832349,1726931443509,-500.0,0.00014697,2]
[338832351,1726931443518,-500.0,0.00014697,2]
[338832353,1726931443528,-500.0,0.00014697,2]
[338832355,1726931443539,-293.56,0.00014697,2]
[338832357,1726931443548,-500.0,0.00014697,2]
[338832359,1726931443558,-500.0,0.00014697,2]
[338832360,1726931443567,-500.0,0.00014697,2]
[338832362,1726931443576,-164.15,0.00014697,2]
[338832364,1726931443586,-500.0,0.00014697,2]
[338832366,1726931443595,-500.0,0.00014697,2]
[338832368,1726931443604,-500.0,0.00014697,2]
[338832369,1726931443613,-500.0,0.00014697,2]
[338832371,1726931443623,-500.0,0.00014697,2]
[338832373,1726931443631,-500.0,0.00014697,2]
[338832375,1726931443641,-500.0,0.00014697,2]
[338832377,1726931443651,-574.34,0.00014697,2]
[338832379,1726931443660,-500.0,0.00014697,2]
[338832381,1726931443669,-500.0,0.00014697,2]
[338832382,1726931443678,-500.0,0.00014697,2]
[338832384,1726931443687,-500.0,0.00014697,2]
[338832386,1726931443696,-500.0,0.00014697,2]
[338832388,1726931443706,-500.0,0.00014697,2]
[338832390,1726931443715,-500.0,0.00014697,2]
[338832391,1726931443725,-500.0,0.00014697,2]
[338832393,1726931443734,-245000.0,0.00014698,2]
[338832395,1726931443743,-213.55900717,0.00014698,2]
[338832397,1726931443752,-168.64780148,0.00014717,2]
[338832399,1726931443761,-150.0,0.00014725,2]
[338832401,1726931443771,-150.0,0.00014736,2]
[338832403,1726931443780,-150.0,0.00014742,2]
[338832405,1726931443789,-150.0,0.00014746,2]
[338832406,1726931443799,-150.0,0.00014747,2]
[338832408,1726931443808,-150.0,0.0001475,2]
[338832410,1726931443817,-1987.92176373,0.00014755,2]
[338832412,1726931443826,-150.0,0.00014765,2]
[338832414,1726931443835,-150.0,0.00014765,2]
[338832416,1726931443844,-6817.91559342,0.00014777,3]
[338832418,1726931443853,-150.0,0.00014777,2]
[338832419,1726931443863,-4908.1857985,0.0001478,2]
[338832421,1726931443872,-150.0,0.0001478,2]
[338832423,1726931443881,-150.0,0.00014783,2]
[338832425,1726931443890,-150.0,0.00014783,2]
[338832427,1726931443899,-224.618293,0.00014795,2]
[338832428,1726931443909,-2648.91964051,0.00014797,10]
[338832430,1726931443918,-3500.0,0.000148,2]
[338832432,1726931443928,-2944.8768,0.000148,2]
[338832434,1726931443938,-779.78214324,0.000148,2]
[338832435,1726931443947,-168.64780148,0.00014808,2]
[338832437,1726931443956,-150.0,0.00014812,2]
[338832439,1726931443965,-150.0,0.00014818,2]
[338832441,1726931443975,-150.0,0.0001483,2]
[338832443,1726931443984,-150.0,0.00014833,2]
[338832445,1726931443994,-150.0,0.00014843,2]
[338832447,1726931444006,-150.0,0.00014847,2]
[338832449,1726931444016,-150.0,0.00014848,2]
[338832451,1726931444024,-150.0,0.00014849,2]
[338832452,1726931444034,-150.0,0.00014852,2]
[338832454,1726931444045,-150.0,0.00014853,2]
[338832456,1726931444054,-6817.91559342,0.0001487,3]
[338832458,1726931444063,-150.0,0.00014876,2]
[338832460,1726931444076,-500.0,0.0001488,2]
[338832462,1726931444086,-2000.0,0.0001488,2]
[338832463,1726931444095,-500.0,0.0001488,2]
[338832465,1726931444104,-150.0,0.00014886,2]
[338832467,1726931444114,-500.0,0.00014889,2]
[338832469,1726931444123,-500.0,0.00014889,2]
[338832471,1726931444132,-500.0,0.00014889,2]
[338832472,1726931444141,-500.0,0.00014889,2]
[338832474,1726931444150,-319.15,0.00014889,2]
[338832476,1726931444160,-500.0,0.00014889,2]
[338832478,1726931444169,-500.0,0.00014889,2]
[338832480,1726931444179,-500.0,0.00014889,2]
[338832481,1726931444189,-500.0,0.00014889,2]
[338832483,1726931444199,-470.05,0.00014889,2]
[338832485,1726931444209,-500.0,0.00014889,2]
[338832487,1726931444218,-500.0,0.00014889,2]
[338832489,1726931444234,-500.0,0.00014889,2]
[338832491,1726931444245,-150.0,0.00014894,2]
[338832492,1726931444254,-328.93,0.00014898,2]
[338832494,1726931444264,-213.773,0.00014898,2]
[338832496,1726931444273,-500.0,0.00014899,2]
[338832498,1726931444282,-500.0,0.00014899,2]
[338832500,1726931444291,-2079.37,0.00014899,2]
[338832502,1726931444300,-500.0,0.00014899,2]
[338832504,1726931444309,-500.0,0.00014899,2]
[338832505,1726931444318,-500.0,0.00014899,2]
[338832507,1726931444328,-500.0,0.00014899,2]
[338832509,1726931444338,-500.0,0.00014899,2]
[338832511,1726931444347,-500.0,0.00014899,2]
[338832513,1726931444356,-500.0,0.00014899,2]
[338832515,1726931444365,-500.0,0.00014899,2]
[338832517,1726931444375,-500.0,0.00014899,2]
[338832519,1726931444384,-500.0,0.00014899,2]
[338832520,1726931444394,-500.0,0.00014899,2]
[338832522,1726931444403,-500.0,0.00014899,2]
[338832524,1726931444413,-500.0,0.00014899,2]
[338832526,1726931444423,-500.0,0.00014899,2]
[338832528,1726931444432,-500.0,0.00014899,2]
[338832530,1726931444441,-261.6396757,0.00014899,2]
[338832532,1726931444451,-500.0,0.00014899,2]
[338832534,1726931444460,-500.0,0.00014899,2]
[338832535,1726931444470,-1636.9819,0.000149,2]
[338832537,1726931444480,-500.0,0.000149,2]
[338832539,1726931444489,-3386.27557811,0.000149,2]
[338832541,1726931444498,-12030.58466119,0.000149,2]
[338832550,1726931444579,-500.0,0.0001452,2]
[338832552,1726931444589,-500.0,0.00014597,2]
[338832553,1726931444599,-237.38111614,0.00014697,2]
[338832555,1726931444609,-218.36063881,0.000149,2]
[338832557,1726931444618,-811.87282011,0.000149,2]
[338832559,1726931444630,-633.2,0.000149,2]
[338832561,1726931444642,-1186.69857989,0.000149,2]
[338832563,1726931444652,-347.36780753,0.000149,2]
[338832565,1726931444662,-61999.99999901,0.000149,2]
[338832567,1726931444671,-1987.92176373,0.000149,2]
[338832569,1726931444681,-554.12,0.000149,31]
[338832571,1726931444691,-554.12,0.000149,31]
[338832573,1726931444700,-554.12,0.000149,31]
[338832575,1726931444709,-554.12,0.000149,31]
[338832577,1726931444719,-554.12,0.000149,31]
[338832578,1726931444729,-554.12,0.000149,31]
[338832579,1726931444738,-554.12,0.000149,31]
[338832580,1726931444748,-554.12,0.000149,31]
[338832581,1726931444757,-554.12,0.000149,31]
[338832582,1726931444769,-554.12,0.000149,31]
[338832583,1726931444779,-554.12,0.000149,31]
[338832584,1726931444789,-554.12,0.000149,31]
[338832585,1726931444798,-554.12,0.000149,31]
[338832586,1726931444807,-554.12,0.000149,31]
[338832587,1726931444817,-554.12,0.000149,31]
[338832588,1726931444828,-554.12,0.000149,31]
[338832589,1726931444838,-190.9252076,0.000149,2]
[338832590,1726931444847,-168.64780148,0.000149,2]
[338832591,1726931444857,-2460.59802534,0.000149,2]
[338832592,1726931444866,-150.0,0.00014902,2]
[338832593,1726931444876,-150.0,0.00014906,2]
[338832594,1726931444885,-150.0,0.0001491,2]
[338832596,1726931444895,-150.0,0.00014912,2]
[338832597,1726931444904,-150.0,0.00014926,2]
[338832598,1726931444914,-150.0,0.00014929,2]
[338832599,1726931444923,-150.0,0.00014932,2]
[338832600,1726931444933,-150.0,0.00014932,2]
[338832601,1726931444943,-150.0,0.00014936,2]
[338832602,1726931444952,-245.88745338,0.00014936,2]
[338832603,1726931444964,-150.0,0.00014956,2]
[338832604,1726931444976,-150.0,0.00014957,2]
[338832605,1726931444987,-150.0,0.00014958,2]
[338832606,1726931445001,-150.0,0.00014968,2]
[338832607,1726931445012,-150.0,0.00014971,2]
[338832608,1726931445022,-500.0,0.00014973,2]
[338832609,1726931445033,-150.0,0.00014973,2]
[338832610,1726931445046,-170.178047,0.00014974,2]
[338832611,1726931445056,-224.618293,0.00014974,2]
[338832612,1726931445067,-500.0,0.00014979,2]
[338832613,1726931445078,-500.0,0.00014979,2]
[338832614,1726931445088,-500.0,0.00014989,2]
[338832615,1726931445098,-500.0,0.00014989,2]
[338832616,1726931445107,-2079.37,0.00014989,2]
[338832617,1726931445116,-275.81,0.00014989,2]
[338832618,1726931445126,-500.0,0.00014989,2]
[338832619,1726931445135,-500.0,0.00014989,2]
[338832620,1726931445146,-500.0,0.00014989,2]
[338832621,1726931445156,-153.75,0.00014989,2]
[338832622,1726931445166,-500.0,0.00014989,2]
[338832623,1726931445176,-500.0,0.00014989,2]
[338832624,1726931445187,-794.89,0.00014989,2]
[338832625,1726931445197,-500.0,0.00014989,2]
[338832626,1726931445208,-500.0,0.00014989,2]
[338832627,1726931445219,-500.0,0.00014989,2]
[338832628,1726931445231,-500.0,0.00014989,2]
[338832629,1726931445242,-500.0,0.00014989,2]
[338832630,1726931445252,-500.0,0.00014989,2]
[338832632,1726931445263,-500.0,0.00014989,2]
[338832634,1726931445274,-606.56,0.00014989,2]
[338832636,1726931445284,-575.59,0.00014989,2]
[338832639,1726931445294,-500.0,0.00014989,2]
[338832641,1726931445305,-500.0,0.00014989,2]
[338832644,1726931445315,-500.0,0.00014989,2]
[338832645,1726931445326,-500.0,0.00014989,2]
[338832646,1726931445336,-500.0,0.00014989,2]
[338832647,1726931445346,-500.0,0.00014989,2]
[338832648,1726931445357,-500.0,0.00014989,2]
[338832649,1726931445367,-500.0,0.00014989,2]
[338832650,1726931445377,-500.0,0.00014989,2]
[338832651,1726931445389,-500.0,0.00014989,2]
[338832652,1726931445400,-500.0,0.00014989,2]
[338832653,1726931445410,-500.0,0.00014989,2]
[338832654,1726931445420,-442.57,0.00014989,2]
[338832655,1726931445430,-500.0,0.00014989,2]
[338832656,1726931445440,-500.0,0.00014989,2]
[338832657,1726931445450,-500.0,0.00014989,2]
[338832658,1726931445461,-500.0,0.00014989,2]
[338832659,1726931445471,-500.0,0.00014989,2]
[338832660,1726931445492,-500.0,0.00014989,2]